[Event "*** Titled Tuesday 3|2 Blitz (Early)"]
[Site "Chess.com"]
[Date "2016.11.01"]
[Round "3"]
[White "oskariot"]
[Black "darsen_sanzhaev"]
[Result "1/2-1/2"]
[WhiteElo "2392"]
[BlackElo "2255"]
[TimeControl "180+2"]
[EndTime "11:41:13 PDT"]
[Termination "Game drawn by 50-move rule"]

1. e4 {[%clk 0:03:00.8]} 1... e5 {[%clk 0:02:55.7]} 2. Nf3 {[%clk 0:03:01.9]}
2... Nc6 {[%clk 0:02:57.2]} 3. Bb5 {[%clk 0:03:00.1]} 3... a6 {[%clk 0:02:58.6]}
4. Bxc6 {[%clk 0:03:01.2]} 4... dxc6 {[%clk 0:03:00.5]} 5. d3 {[%clk 0:03:02.9]}
5... Bd6 {[%clk 0:02:44.4]} 6. Nc3 {[%clk 0:02:59.9]} 6... c5 {[%clk 0:02:33.9]}
7. Ne2 {[%clk 0:02:55.4]} 7... Ne7 {[%clk 0:02:21]} 8. O-O {[%clk 0:02:53.9]}
8... O-O {[%clk 0:02:09.4]} 9. Nd2 {[%clk 0:02:54.8]} 9... Ng6 {[%clk
0:02:00.8]} 10. a4 {[%clk 0:02:50.1]} 10... Be6 {[%clk 0:01:58.4]} 11. Nc4
{[%clk 0:02:50.7]} 11... b5 {[%clk 0:01:38.6]} 12. Ne3 {[%clk 0:02:47.7]} 12...
Qd7 {[%clk 0:01:22.5]} 13. Ng3 {[%clk 0:02:32.3]} 13... Rfd8 {[%clk 0:01:12.9]}
14. Ngf5 {[%clk 0:02:06.4]} 14... Bf8 {[%clk 0:01:11]} 15. Qg4 {[%clk
0:01:58.6]} 15... Ne7 {[%clk 0:00:36]} 16. Qf3 {[%clk 0:01:56.4]} 16... g6
{[%clk 0:00:32.1]} 17. Ng4 {[%clk 0:01:32.6]} 17... Kh8 {[%clk 0:00:14.6]} 18.
Nf6 {[%clk 0:01:24.7]} 18... Qc6 {[%clk 0:00:11.1]} 19. Bg5 {[%clk 0:01:08.2]}
19... Nxf5 {[%clk 0:00:05.7]} 20. axb5 {[%clk 0:01:03.1]} 20... axb5 {[%clk
0:00:04.6]} 21. exf5 {[%clk 0:00:47.9]} 21... Qxf3 {[%clk 0:00:04.7]} 22. gxf3
{[%clk 0:00:49.4]} 22... Bxf5 {[%clk 0:00:06.3]} 23. Ne4 {[%clk 0:00:50.9]}
23... Rdb8 {[%clk 0:00:03.5]} 24. Bf6+ {[%clk 0:00:51.5]} 24... Bg7 {[%clk
0:00:04.7]} 25. Bxg7+ {[%clk 0:00:52.1]} 25... Kxg7 {[%clk 0:00:06.6]} 26. Nxc5
{[%clk 0:00:53.8]} 26... f6 {[%clk 0:00:05.6]} 27. b4 {[%clk 0:00:47.4]} 27...
Bh3 {[%clk 0:00:05.3]} 28. Rfe1 {[%clk 0:00:47.5]} 28... Kf7 {[%clk 0:00:07.2]}
29. c3 {[%clk 0:00:21.8]} 29... Rd8 {[%clk 0:00:05.3]} 30. Nb7 {[%clk
0:00:19.1]} 30... Rdb8 {[%clk 0:00:05.4]} 31. Nc5 {[%clk 0:00:18.9]} 31... Rd8
{[%clk 0:00:06.8]} 32. Red1 {[%clk 0:00:20]} 32... c6 {[%clk 0:00:06]} 33. Rdc1
{[%clk 0:00:19.7]} 33... Rxa1 {[%clk 0:00:05.9]} 34. Rxa1 {[%clk 0:00:20.7]}
34... g5 {[%clk 0:00:06.4]} 35. Ra7+ {[%clk 0:00:21.7]} 35... Kg6 {[%clk
0:00:07.7]} 36. Ra6 {[%clk 0:00:20.6]} 36... Rd6 {[%clk 0:00:08.6]} 37. f4
{[%clk 0:00:20.9]} 37... gxf4 {[%clk 0:00:04.8]} 38. f3 {[%clk 0:00:22.2]} 38...
Kf5 {[%clk 0:00:05]} 39. Kf2 {[%clk 0:00:21.1]} 39... h5 {[%clk 0:00:04.5]} 40.
Ra7 {[%clk 0:00:20.4]} 40... Rd8 {[%clk 0:00:04.6]} 41. Ke2 {[%clk 0:00:21.1]}
41... Rg8 {[%clk 0:00:05.4]} 42. Ne4 {[%clk 0:00:20.5]} 42... Rg2+ {[%clk
0:00:05.9]} 43. Nf2 {[%clk 0:00:21.9]} 43... Rxh2 {[%clk 0:00:06.5]} 44. Rh7
{[%clk 0:00:22]} 44... Bg2 {[%clk 0:00:07.1]} 45. d4 {[%clk 0:00:15.6]} 45...
Ke6 {[%clk 0:00:04.1]} 46. dxe5 {[%clk 0:00:14.2]} 46... fxe5 {[%clk 0:00:04.9]}
47. Rh6+ {[%clk 0:00:15.2]} 47... Kd5 {[%clk 0:00:06.3]} 48. Rf6 {[%clk
0:00:14.6]} 48... Kc4 {[%clk 0:00:05.7]} 49. Rxc6+ {[%clk 0:00:15.7]} 49... Kb3
{[%clk 0:00:06.6]} 50. Rc5 {[%clk 0:00:17.3]} 50... Bh1 {[%clk 0:00:05.5]} 51.
Rxe5 {[%clk 0:00:13.6]} 51... Kxc3 {[%clk 0:00:05.3]} 52. Rxb5 {[%clk
0:00:14.9]} 52... Kc4 {[%clk 0:00:06.4]} 53. Rf5 {[%clk 0:00:16.1]} 53... Kxb4
{[%clk 0:00:06]} 54. Rxf4+ {[%clk 0:00:17.6]} 54... Kc5 {[%clk 0:00:07.3]} 55.
Kf1 {[%clk 0:00:19.2]} 55... Bxf3 {[%clk 0:00:04.9]} 56. Rxf3 {[%clk 0:00:18.3]}
56... Rh4 {[%clk 0:00:06.3]} 57. Kg2 {[%clk 0:00:19.3]} 57... Kd5 {[%clk
0:00:06.4]} 58. Rf5+ {[%clk 0:00:20.6]} 58... Ke6 {[%clk 0:00:07.1]} 59. Ra5
{[%clk 0:00:22.3]} 59... Kf6 {[%clk 0:00:05.6]} 60. Kg3 {[%clk 0:00:23.7]} 60...
Rb4 {[%clk 0:00:06.1]} 61. Rxh5 {[%clk 0:00:24.7]} 61... Ke6 {[%clk 0:00:04.6]}
62. Kf3 {[%clk 0:00:25.5]} 62... Kd6 {[%clk 0:00:03.8]} 63. Ne4+ {[%clk
0:00:27]} 63... Ke6 {[%clk 0:00:05]} 64. Kf4 {[%clk 0:00:28.9]} 64... Rb1 {[%clk
0:00:06.5]} 65. Re5+ {[%clk 0:00:30.3]} 65... Kd7 {[%clk 0:00:06.4]} 66. Rh5
{[%clk 0:00:32]} 66... Ke6 {[%clk 0:00:07.2]} 67. Rh6+ {[%clk 0:00:33.4]} 67...
Kd5 {[%clk 0:00:07.7]} 68. Rd6+ {[%clk 0:00:35.1]} 68... Kc4 {[%clk 0:00:08.5]}
69. Ke5 {[%clk 0:00:37]} 69... Rb5+ {[%clk 0:00:09.3]} 70. Kf4 {[%clk
0:00:37.7]} 70... Rb1 {[%clk 0:00:10.1]} 71. Rd8 {[%clk 0:00:38.3]} 71... Rb2
{[%clk 0:00:06.8]} 72. Rd7 {[%clk 0:00:39]} 72... Rb4 {[%clk 0:00:05.8]} 73. Ke5
{[%clk 0:00:39.2]} 73... Rb5+ {[%clk 0:00:06.2]} 74. Ke6 {[%clk 0:00:40.3]}
74... Rh5 {[%clk 0:00:05.8]} 75. Nd6+ {[%clk 0:00:41.5]} 75... Kc5 {[%clk
0:00:03.9]} 76. Ne8 {[%clk 0:00:41.7]} 76... Rh6+ {[%clk 0:00:03.8]} 77. Nf6
{[%clk 0:00:42.8]} 77... Rh4 {[%clk 0:00:04.7]} 78. Rc7+ {[%clk 0:00:44.2]}
78... Kd4 {[%clk 0:00:05.7]} 79. Rc1 {[%clk 0:00:44.1]} 79... Rf4 {[%clk
0:00:05.9]} 80. Rd1+ {[%clk 0:00:45.3]} 80... Kc4 {[%clk 0:00:07]} 81. Ke5
{[%clk 0:00:46.7]} 81... Rh4 {[%clk 0:00:07.4]} 82. Rd8 {[%clk 0:00:45.9]} 82...
Rh1 {[%clk 0:00:06.8]} 83. Ng4 {[%clk 0:00:44.7]} 83... Rh5+ {[%clk 0:00:07]}
84. Ke4 {[%clk 0:00:45.8]} 84... Rh4 {[%clk 0:00:08.4]} 85. Kf3 {[%clk
0:00:47.2]} 85... Rh3+ {[%clk 0:00:08.9]} 86. Kf4 {[%clk 0:00:47.9]} 86... Rh4
{[%clk 0:00:09.1]} 87. Kg5 {[%clk 0:00:49.4]} 87... Rh1 {[%clk 0:00:09.3]} 88.
Ne5+ {[%clk 0:00:50.7]} 88... Kc5 {[%clk 0:00:09.8]} 89. Kf5 {[%clk 0:00:52.3]}
89... Rh5+ {[%clk 0:00:09.9]} 90. Kf6 {[%clk 0:00:52.8]} 90... Rh6+ {[%clk
0:00:10.9]} 91. Kg5 {[%clk 0:00:54.4]} 91... Rh1 {[%clk 0:00:11.6]} 92. Kf4
{[%clk 0:00:53.9]} 92... Rh4+ {[%clk 0:00:11.8]} 93. Ke3 {[%clk 0:00:55.3]}
93... Ra4 {[%clk 0:00:10.7]} 94. Nd3+ {[%clk 0:00:56.4]} 94... Kc6 {[%clk
0:00:11.2]} 95. Rc8+ {[%clk 0:00:57.4]} 95... Kd5 {[%clk 0:00:09.7]} 96. Rc5+
{[%clk 0:00:58.5]} 96... Kd6 {[%clk 0:00:10.7]} 97. Rb5 {[%clk 0:00:59.8]} 97...
Ra3 {[%clk 0:00:08.2]} 98. Kd4 {[%clk 0:01:01]} 98... Ra4+ {[%clk 0:00:09.4]}
99. Nb4 {[%clk 0:01:01.9]} 99... Ra1 {[%clk 0:00:08.1]} 100. Rb6+ {[%clk
0:01:03.3]} 100... Kd7 {[%clk 0:00:09.3]} 101. Nd5 {[%clk 0:01:01.5]} 101...
Rd1+ {[%clk 0:00:09.6]} 102. Ke5 {[%clk 0:01:02.8]} 102... Re1+ {[%clk
0:00:10.7]} 103. Kf5 {[%clk 0:01:04.5]} 103... Rf1+ {[%clk 0:00:11.4]} 104. Ke4
{[%clk 0:01:06.4]} 104... Re1+ {[%clk 0:00:11.5]} 105. Ne3 {[%clk 0:01:08.3]}
105... Ke7 {[%clk 0:00:11.6]} 106. Rb3 {[%clk 0:01:09.1]} 106... Ke6 {[%clk
0:00:11.7]} 107. Rb6+ {[%clk 0:01:10.2]} 107... Ke7 {[%clk 0:00:12.2]} 108. Kd4
{[%clk 0:01:12]} 108... Re2 {[%clk 0:00:09.9]} 109. Nc4 {[%clk 0:01:13.2]}
109... Re1 {[%clk 0:00:09.7]} 110. Kc5 {[%clk 0:01:14.5]} 110... Rd1 {[%clk
0:00:08.4]} 111. Ne3 {[%clk 0:01:13.1]} 111... Rd3 {[%clk 0:00:06.8]} 112. Nd5+
{[%clk 0:01:14.2]} 112... Kf7 {[%clk 0:00:07.6]} 113. Kd6 {[%clk 0:01:15.7]}
113... Rd1 {[%clk 0:00:07]} 114. Rb4 {[%clk 0:01:17]} 114... Kg6 {[%clk
0:00:05.6]} 115. Rf4 {[%clk 0:01:18]} 115... Kg5 {[%clk 0:00:06.8]} 116. Rf3
{[%clk 0:01:19.1]} 116... Re1 {[%clk 0:00:05.3]} 117. Ne3 {[%clk 0:01:19.7]}
117... Ra1 {[%clk 0:00:06]} 118. Ke5 {[%clk 0:01:21.1]} 118... Ra5+ {[%clk
0:00:06.4]} 119. Nd5 {[%clk 0:01:22.7]} 119... Kg4 {[%clk 0:00:07.3]} 120. Rf8
{[%clk 0:01:23.9]} 120... Ra4 {[%clk 0:00:06.2]} 121. Nf6+ {[%clk 0:01:24.3]}
121... Kf3 {[%clk 0:00:07]} 122. Ne4+ {[%clk 0:01:24.8]} 122... Ke3 {[%clk
0:00:07.5]} 123. Nf6 {[%clk 0:01:12.9]} 123... Kd3 {[%clk 0:00:06.3]} 124. Nd5
{[%clk 0:01:14]} 124... Re4+ {[%clk 0:00:06.8]} 125. Kd6 {[%clk 0:01:15]} 125...
Kd4 {[%clk 0:00:06.2]} 126. Rf1 {[%clk 0:01:15.9]} 126... Rh4 {[%clk 0:00:07]}
127. Rd1+ {[%clk 0:01:16.4]} 127... Kc4 {[%clk 0:00:06.6]} 128. Ne3+ {[%clk
0:01:16.1]} 128... Kc3 {[%clk 0:00:05.8]} 129. Kc5 {[%clk 0:01:16.7]} 129... Rh8
{[%clk 0:00:04.8]} 130. Nd5+ {[%clk 0:01:17.8]} 130... Kc2 {[%clk 0:00:05.1]}
131. Rg1 {[%clk 0:01:19.1]} 131... Rh7 {[%clk 0:00:04.7]} 132. Rg4 {[%clk
0:01:19]} 132... Rh8 {[%clk 0:00:05.2]} 133. Kd4 {[%clk 0:01:20.3]} 133... Kb3
{[%clk 0:00:05.2]} 134. Rg3+ {[%clk 0:01:21.6]} 134... Kc2 {[%clk 0:00:04.1]}
135. Nb4+ {[%clk 0:01:21.3]} 135... Kb2 {[%clk 0:00:05.5]} 136. Na6 {[%clk
0:01:22.7]} 1/2-1/2

[Event "*** Titled Tuesday 3|2 Blitz (Early)"]
[Site "Chess.com"]
[Date "2016.11.01"]
[Round "4"]
[White "Andrejkin"]
[Black "saraswathii"]
[Result "1/2-1/2"]
[WhiteElo "2160"]
[BlackElo "2150"]
[TimeControl "180+2"]
[EndTime "11:45:52 PDT"]
[Termination "Game drawn by agreement"]

1. e4 {[%clk 0:03:02]} 1... c5 {[%clk 0:03:00.1]} 2. Nf3 {[%clk 0:03:02.3]} 2...
e6 {[%clk 0:03:01.1]} 3. Nc3 {[%clk 0:03:02.8]} 3... Nc6 {[%clk 0:03:00]} 4. Bb5
{[%clk 0:02:57.4]} 4... Nge7 {[%clk 0:02:56.4]} 5. d4 {[%clk 0:02:56]} 5... cxd4
{[%clk 0:02:56.2]} 6. Nxd4 {[%clk 0:02:57.9]} 6... a6 {[%clk 0:02:57.2]} 7. Be2
{[%clk 0:02:56.8]} 7... Nxd4 {[%clk 0:02:56.5]} 8. Qxd4 {[%clk 0:02:56.8]} 8...
Nc6 {[%clk 0:02:57.7]} 9. Qd1 {[%clk 0:02:50.2]} 9... Bc5 {[%clk 0:02:50.7]} 10.
Bf4 {[%clk 0:02:38.3]} 10... Qe7 {[%clk 0:02:41.4]} 11. Qd2 {[%clk 0:02:28.5]}
11... O-O {[%clk 0:02:38.3]} 12. O-O-O {[%clk 0:02:27.9]} 12... Qf6 {[%clk
0:02:31.6]} 13. g4 {[%clk 0:02:24]} 13... Bb4 {[%clk 0:02:19.9]} 14. g5 {[%clk
0:02:22]} 14... Bxc3 {[%clk 0:02:20.1]} 15. gxf6 {[%clk 0:02:18.7]} 15... Bxd2+
{[%clk 0:02:21.2]} 16. Rxd2 {[%clk 0:02:20.6]} 16... e5 {[%clk 0:02:09.6]} 17.
fxg7 {[%clk 0:02:17.5]} 17... Re8 {[%clk 0:01:55.8]} 18. Be3 {[%clk 0:02:17.2]}
18... Re6 {[%clk 0:01:46.1]} 19. Bc4 {[%clk 0:02:12]} 19... Rg6 {[%clk
0:01:45.4]} 20. f4 {[%clk 0:02:02.2]} 20... exf4 {[%clk 0:01:41.5]} 21. Bxf4
{[%clk 0:02:04.1]} 21... Rxg7 {[%clk 0:01:40.3]} 1/2-1/2

[Event "*** Titled Tuesday 3|2 Blitz (Early)"]
[Site "Chess.com"]
[Date "2016.11.01"]
[Round "4"]
[White "avto24"]
[Black "AdrianaNikolova"]
[Result "1-0"]
[WhiteElo "2317"]
[BlackElo "2238"]
[TimeControl "180+2"]
[EndTime "11:46:51 PDT"]
[Termination "avto24 won by resignation"]

1. e4 {[%clk 0:03:01.9]} 1... c6 {[%clk 0:02:52.4]} 2. d4 {[%clk 0:02:59.7]}
2... d6 {[%clk 0:02:52.9]} 3. c4 {[%clk 0:02:58.6]} 3... e5 {[%clk 0:02:53]} 4.
Nf3 {[%clk 0:02:57]} 4... Qc7 {[%clk 0:02:53]} 5. Nc3 {[%clk 0:02:57.3]} 5...
Bg4 {[%clk 0:02:52.8]} 6. Be2 {[%clk 0:02:57.8]} 6... Nf6 {[%clk 0:02:52.7]} 7.
h3 {[%clk 0:02:57.8]} 7... Bxf3 {[%clk 0:02:52.4]} 8. Bxf3 {[%clk 0:02:59.7]}
8... Be7 {[%clk 0:02:52.4]} 9. Be3 {[%clk 0:03:00.6]} 9... O-O {[%clk
0:02:52.2]} 10. Qd2 {[%clk 0:03:01.2]} 10... Nbd7 {[%clk 0:02:52.1]} 11. O-O-O
{[%clk 0:02:58.3]} 11... a6 {[%clk 0:02:45.5]} 12. Kb1 {[%clk 0:02:55]} 12... b5
{[%clk 0:02:37.5]} 13. g4 {[%clk 0:02:42.5]} 13... bxc4 {[%clk 0:02:19.3]} 14.
g5 {[%clk 0:02:42.7]} 14... Ne8 {[%clk 0:02:10.6]} 15. dxe5 {[%clk 0:02:36.9]}
15... Nxe5 {[%clk 0:02:02.9]} 16. Be2 {[%clk 0:02:38.3]} 16... Rb8 {[%clk
0:01:37.4]} 17. f4 {[%clk 0:02:38.4]} 17... Nd3 {[%clk 0:01:37.1]} 18. Bxd3
{[%clk 0:02:39.6]} 18... cxd3 {[%clk 0:01:35.7]} 19. Qxd3 {[%clk 0:02:41.1]}
19... Qb7 {[%clk 0:01:19.4]} 20. Rh2 {[%clk 0:02:41.2]} 20... Nc7 {[%clk
0:01:09.5]} 21. h4 {[%clk 0:02:39.8]} 21... Nb5 {[%clk 0:01:09.6]} 22. Na4
{[%clk 0:02:33]} 22... c5 {[%clk 0:01:02.9]} 23. h5 {[%clk 0:02:30.3]} 23... c4
{[%clk 0:01:03]} 24. Qd5 {[%clk 0:02:03.8]} 24... Nc3+ {[%clk 0:00:45.4]} 25.
Nxc3 {[%clk 0:02:03.2]} 1-0

[Event "*** Titled Tuesday 3|2 Blitz (Early)"]
[Site "Chess.com"]
[Date "2016.11.01"]
[Round "4"]
[White "NDePinEsPeRG"]
[Black "howitzer14"]
[Result "1/2-1/2"]
[WhiteElo "2648"]
[BlackElo "2766"]
[TimeControl "180+2"]
[EndTime "11:46:59 PDT"]
[Termination "Game drawn by agreement"]

1. e4 {[%clk 0:03:01.9]} 1... e5 {[%clk 0:03:01.4]} 2. Nf3 {[%clk 0:03:02.6]}
2... Nc6 {[%clk 0:03:01.5]} 3. Bc4 {[%clk 0:03:03]} 3... Nf6 {[%clk 0:03:02.6]}
4. d3 {[%clk 0:03:03.9]} 4... h6 {[%clk 0:03:02.8]} 5. O-O {[%clk 0:03:04]} 5...
d6 {[%clk 0:03:03]} 6. c3 {[%clk 0:03:04.6]} 6... g6 {[%clk 0:03:03.6]} 7. Nbd2
{[%clk 0:03:04.4]} 7... Bg7 {[%clk 0:03:04.7]} 8. Re1 {[%clk 0:03:03.9]} 8...
O-O {[%clk 0:03:04.4]} 9. a4 {[%clk 0:03:03.2]} 9... Na5 {[%clk 0:02:46.9]} 10.
Ba2 {[%clk 0:03:03.2]} 10... c5 {[%clk 0:02:47.8]} 11. b4 {[%clk 0:03:01.8]}
11... Nc6 {[%clk 0:02:41]} 12. bxc5 {[%clk 0:02:55.6]} 12... dxc5 {[%clk
0:02:42.9]} 13. Nc4 {[%clk 0:02:55.6]} 13... Re8 {[%clk 0:02:41.7]} 14. Be3
{[%clk 0:02:50.4]} 14... Qe7 {[%clk 0:02:40.3]} 15. h3 {[%clk 0:02:49.1]} 15...
Be6 {[%clk 0:02:37.6]} 16. Qc2 {[%clk 0:02:48]} 16... Rac8 {[%clk 0:02:33.7]}
17. a5 {[%clk 0:02:41.1]} 17... Rc7 {[%clk 0:02:33.9]} 18. Bb3 {[%clk
0:02:32.2]} 18... Rd8 {[%clk 0:02:31.1]} 19. Nb2 {[%clk 0:02:13.8]} 19... Nd4
{[%clk 0:02:23]} 20. Bxd4 {[%clk 0:02:00.5]} 20... cxd4 {[%clk 0:02:24.9]} 21.
Bxe6 {[%clk 0:01:59.9]} 21... Qxe6 {[%clk 0:02:18.5]} 22. c4 {[%clk 0:01:58.8]}
22... Nd7 {[%clk 0:02:17.1]} 23. Na4 {[%clk 0:01:57.2]} 23... Bf8 {[%clk
0:02:15.3]} 24. Rab1 {[%clk 0:01:56.7]} 24... Kg7 {[%clk 0:02:11.7]} 25. Rb5
{[%clk 0:01:56.1]} 25... Nc5 {[%clk 0:02:09.9]} 26. Reb1 {[%clk 0:01:53.9]}
26... Rdd7 {[%clk 0:02:07.9]} 27. Nd2 {[%clk 0:01:51.4]} 27... Na6 {[%clk
0:02:03.1]} 28. R1b2 {[%clk 0:01:45.1]} 28... Ba3 {[%clk 0:01:57.8]} 29. R2b3
{[%clk 0:01:45.5]} 29... Bd6 {[%clk 0:01:58.6]} 30. Qb1 {[%clk 0:01:45.6]} 30...
Qe7 {[%clk 0:01:55.3]} 31. Nf3 {[%clk 0:01:42.9]} 31... Nc5 {[%clk 0:01:51.1]}
32. Nxc5 {[%clk 0:01:42.2]} 32... Bxc5 {[%clk 0:01:53]} 33. Rb2 {[%clk
0:01:35.3]} 33... Kh7 {[%clk 0:01:49.3]} 34. Qa2 {[%clk 0:01:34.7]} 34... Kg7
{[%clk 0:01:50.3]} 35. Qa4 {[%clk 0:01:35]} 35... Kh7 {[%clk 0:01:45.6]} 36. Rb1
{[%clk 0:01:34.7]} 1/2-1/2

[Event "*** Titled Tuesday 3|2 Blitz (Early)"]
[Site "Chess.com"]
[Date "2016.11.01"]
[Round "4"]
[White "chito89"]
[Black "YuriyKrykun"]
[Result "1/2-1/2"]
[WhiteElo "2498"]
[BlackElo "2305"]
[TimeControl "180+2"]
[EndTime "11:47:08 PDT"]
[Termination "Game drawn by agreement"]

1. d4 {[%clk 0:03:01.7]} 1... Nf6 {[%clk 0:03:00.5]} 2. c4 {[%clk 0:03:02.7]}
2... g6 {[%clk 0:03:02.1]} 3. Nc3 {[%clk 0:03:03.8]} 3... d5 {[%clk 0:03:03.8]}
4. Nf3 {[%clk 0:03:03.6]} 4... Bg7 {[%clk 0:03:04.8]} 5. e3 {[%clk 0:02:59.3]}
5... O-O {[%clk 0:03:04.4]} 6. cxd5 {[%clk 0:03:00.7]} 6... Nxd5 {[%clk
0:03:05.4]} 7. Bc4 {[%clk 0:03:02.3]} 7... Nb6 {[%clk 0:03:05.3]} 8. Bb3 {[%clk
0:03:03.7]} 8... c5 {[%clk 0:03:06.1]} 9. O-O {[%clk 0:03:04.4]} 9... cxd4
{[%clk 0:03:07.3]} 10. exd4 {[%clk 0:03:05.7]} 10... Bg4 {[%clk 0:03:07.3]} 11.
d5 {[%clk 0:03:00.6]} 11... N8d7 {[%clk 0:03:05.5]} 12. h3 {[%clk 0:03:02]}
12... Bxf3 {[%clk 0:03:05]} 13. Qxf3 {[%clk 0:03:03.5]} 13... Nc5 {[%clk
0:03:05.1]} 14. Be3 {[%clk 0:03:04.9]} 14... Nxb3 {[%clk 0:03:06.2]} 15. axb3
{[%clk 0:03:06.4]} 15... Bxc3 {[%clk 0:03:05.1]} 16. bxc3 {[%clk 0:03:07.4]}
16... Qxd5 {[%clk 0:03:05.4]} 17. Qg3 {[%clk 0:02:47]} 17... Qxb3 {[%clk
0:02:52.9]} 18. Bh6 {[%clk 0:02:41]} 18... Rfe8 {[%clk 0:02:51]} 19. Rfd1 {[%clk
0:02:35.5]} 19... Qe6 {[%clk 0:02:50.8]} 20. Ra5 {[%clk 0:02:29.1]} 20... Nc4
{[%clk 0:02:44.8]} 21. Rad5 {[%clk 0:02:25.9]} 21... Nd6 {[%clk 0:02:45.7]} 22.
Bf4 {[%clk 0:02:11.5]} 22... Nf5 {[%clk 0:02:46]} 23. Qf3 {[%clk 0:02:09.4]}
23... a5 {[%clk 0:02:45.4]} 24. g4 {[%clk 0:02:07.4]} 24... Nd6 {[%clk
0:02:43.7]} 25. Bxd6 {[%clk 0:02:08.3]} 25... exd6 {[%clk 0:02:45.2]} 26. Rxd6
{[%clk 0:02:09.8]} 26... Qe4 {[%clk 0:02:44.7]} 27. Qf6 {[%clk 0:02:06.8]} 27...
Qe5 {[%clk 0:02:32.8]} 28. Qf3 {[%clk 0:02:06.2]} 28... Qe4 {[%clk 0:02:30.4]}
29. Qf6 {[%clk 0:02:06.7]} 29... a4 {[%clk 0:02:17.6]} 30. Rd7 {[%clk
0:01:56.8]} 30... Qe6 {[%clk 0:02:14.9]} 31. Qxe6 {[%clk 0:01:27]} 31... Rxe6
{[%clk 0:02:16.8]} 32. Rxb7 {[%clk 0:01:28.2]} 32... a3 {[%clk 0:02:10.9]} 33.
Ra1 {[%clk 0:01:28.6]} 33... a2 {[%clk 0:01:44.5]} 34. Rb2 {[%clk 0:01:27.5]}
34... Rc6 {[%clk 0:01:45.5]} 35. Rbxa2 {[%clk 0:01:27]} 35... Rxa2 {[%clk
0:01:46.1]} 36. Rxa2 {[%clk 0:01:28.5]} 36... Rxc3 {[%clk 0:01:47.8]} 1/2-1/2

[Event "*** Titled Tuesday 3|2 Blitz (Early)"]
[Site "Chess.com"]
[Date "2016.11.01"]
[Round "4"]
[White "Keaton87"]
[Black "VSERGUEI"]
[Result "1/2-1/2"]
[WhiteElo "2447"]
[BlackElo "2567"]
[TimeControl "180+2"]
[EndTime "11:47:12 PDT"]
[Termination "Game drawn by repetition"]

1. d4 {[%clk 0:02:58.8]} 1... d5 {[%clk 0:03:00.9]} 2. Bf4 {[%clk 0:02:59.3]}
2... c5 {[%clk 0:03:00.6]} 3. e3 {[%clk 0:02:59.7]} 3... Nc6 {[%clk 0:03:00.5]}
4. c3 {[%clk 0:03:00.7]} 4... Bf5 {[%clk 0:02:59.5]} 5. Nd2 {[%clk 0:02:48]}
5... e6 {[%clk 0:02:59]} 6. Ngf3 {[%clk 0:02:48.8]} 6... Nf6 {[%clk 0:02:58.7]}
7. Be2 {[%clk 0:02:50]} 7... Bd6 {[%clk 0:02:48.9]} 8. Bg3 {[%clk 0:02:50]} 8...
O-O {[%clk 0:02:48.9]} 9. O-O {[%clk 0:02:50.6]} 9... Bxg3 {[%clk 0:02:48.1]}
10. hxg3 {[%clk 0:02:51.3]} 10... b6 {[%clk 0:02:37.7]} 11. Bb5 {[%clk
0:02:48.8]} 11... Rc8 {[%clk 0:02:36.6]} 12. Bxc6 {[%clk 0:02:49.2]} 12... Rxc6
{[%clk 0:02:36.9]} 13. Ne5 {[%clk 0:02:51.1]} 13... Rc7 {[%clk 0:02:37.8]} 14.
g4 {[%clk 0:02:52.3]} 14... Bg6 {[%clk 0:02:35]} 15. a4 {[%clk 0:02:50.5]} 15...
Nd7 {[%clk 0:02:34.5]} 16. Nxg6 {[%clk 0:02:47.6]} 16... hxg6 {[%clk 0:02:34.9]}
17. a5 {[%clk 0:02:47.7]} 17... b5 {[%clk 0:02:33.2]} 18. dxc5 {[%clk
0:02:42.6]} 18... Nxc5 {[%clk 0:02:33.1]} 19. Nb3 {[%clk 0:02:44.1]} 19... Nxb3
{[%clk 0:02:28.5]} 20. Qxb3 {[%clk 0:02:44.6]} 20... a6 {[%clk 0:02:29.7]} 21.
Rfd1 {[%clk 0:02:39.9]} 21... Rc4 {[%clk 0:02:29.2]} 22. Rd4 {[%clk 0:02:40.8]}
22... e5 {[%clk 0:02:24.1]} 23. Rxc4 {[%clk 0:02:39.9]} 23... dxc4 {[%clk
0:02:25]} 24. Qd1 {[%clk 0:02:40.8]} 24... Qc7 {[%clk 0:02:20]} 25. Qf3 {[%clk
0:02:15.8]} 25... Rd8 {[%clk 0:02:17.4]} 26. Rd1 {[%clk 0:01:43.2]} 26... Qxa5
{[%clk 0:02:16.9]} 27. Rd5 {[%clk 0:01:30.7]} 27... Rxd5 {[%clk 0:02:05.1]} 28.
Qxd5 {[%clk 0:01:32.6]} 28... Qa1+ {[%clk 0:02:06]} 29. Kh2 {[%clk 0:01:31.1]}
29... Qxb2 {[%clk 0:01:20.8]} 30. Qd8+ {[%clk 0:01:28.1]} 30... Kh7 {[%clk
0:01:21]} 31. Qh4+ {[%clk 0:01:28.7]} 31... Kg8 {[%clk 0:01:22.2]} 32. Qd8+
{[%clk 0:01:29.5]} 32... Kh7 {[%clk 0:01:23.3]} 33. Qh4+ {[%clk 0:01:30.5]}
33... Kg8 {[%clk 0:01:24.3]} 34. Qd8+ {[%clk 0:01:31.6]} 34... Kh7 {[%clk
0:01:25.2]} 1/2-1/2

[Event "*** Titled Tuesday 3|2 Blitz (Early)"]
[Site "Chess.com"]
[Date "2016.11.01"]
[Round "4"]
[White "GremioPrudente"]
[Black "Rating-Schmating"]
[Result "0-1"]
[WhiteElo "2008"]
[BlackElo "2263"]
[TimeControl "180+2"]
[EndTime "11:47:19 PDT"]
[Termination "Rating-Schmating won on time"]

1. Nf3 {[%clk 0:03:01.9]} 1... Nf6 {[%clk 0:03:00.1]} 2. c4 {[%clk 0:03:01.8]}
2... c5 {[%clk 0:02:59.2]} 3. g3 {[%clk 0:03:01.9]} 3... b6 {[%clk 0:03:00.5]}
4. Bg2 {[%clk 0:03:02.7]} 4... Bb7 {[%clk 0:03:01.8]} 5. O-O {[%clk 0:03:04.1]}
5... e6 {[%clk 0:03:03]} 6. Nc3 {[%clk 0:03:05.4]} 6... Be7 {[%clk 0:03:02.6]}
7. d4 {[%clk 0:03:06.9]} 7... cxd4 {[%clk 0:03:03.9]} 8. Qxd4 {[%clk 0:03:07.4]}
8... d6 {[%clk 0:03:02.8]} 9. Bg5 {[%clk 0:03:07.6]} 9... a6 {[%clk 0:02:59.2]}
10. Bxf6 {[%clk 0:03:08]} 10... Bxf6 {[%clk 0:02:58.8]} 11. Qd3 {[%clk
0:03:09.5]} 11... Qc7 {[%clk 0:02:55]} 12. Ne4 {[%clk 0:03:09.2]} 12... Be7
{[%clk 0:02:53]} 13. Rfd1 {[%clk 0:02:55.6]} 13... d5 {[%clk 0:02:45.5]} 14.
cxd5 {[%clk 0:02:50.7]} 14... Bxd5 {[%clk 0:02:45.9]} 15. Rac1 {[%clk
0:02:41.5]} 15... Qb7 {[%clk 0:02:42.4]} 16. Nc3 {[%clk 0:02:41.1]} 16... Bc6
{[%clk 0:02:38.7]} 17. Ne1 {[%clk 0:02:34.8]} 17... Bxg2 {[%clk 0:02:36.9]} 18.
Nxg2 {[%clk 0:02:35.7]} 18... O-O {[%clk 0:02:37.9]} 19. Nf4 {[%clk 0:02:26.5]}
19... Nc6 {[%clk 0:02:32.4]} 20. Qf3 {[%clk 0:02:24]} 20... Rac8 {[%clk
0:02:28]} 21. Ne4 {[%clk 0:02:14.6]} 21... Qa8 {[%clk 0:02:18.2]} 22. Nd6 {[%clk
0:02:11.1]} 22... Bxd6 {[%clk 0:02:15.4]} 23. Rxd6 {[%clk 0:02:11.1]} 23... Ne5
{[%clk 0:02:16.5]} 24. Qe3 {[%clk 0:01:46.5]} 24... Nc4 {[%clk 0:02:15.1]} 25.
Qd4 {[%clk 0:00:02.2]} 25... Nxd6 {[%clk 0:02:11.7]} 0-1